Cogmind - Beta 17 @@@ ROGUE MODE // 2026.08.18 @ 03:09:32 Player: Clog Result: Destroyed by Y-54 Guardian with Gatling Laser Performance ------------- Evolutions (0) 0 Regions Visited (3) 600 Robots Destroyed (22) 110 Value Destroyed (384) 384 Prototype IDs (1) 20 Alien Tech Used (0) 0 Bonus (208) 208 TOTAL SCORE: 1322 Bonus ------- Follower Combat Kills 208 Cogmind --------- Core Integrity 0/250 Matter 209/300 Energy 43/100 System Corruption 0% Temperature Cool (41) Movement Treading (160) Location -7/Recycling Parts ------- > --- POWER (1) -------- (None) > --- PROPULSION (2) --- Light Treads > --- UTILITY (2) ------ Small Storage Unit Signal Interpreter > --- WEAPON (2) ------- Medium Laser Grenade Launcher > --- INVENTORY (8) ---- Light Ion Engine Light Treads Sensor Array Light Armor Plating V3-11A's Pendant Datajack Peak State ------------ > --- POWER ------------ Light Ion Engine > --- PROPULSION ------- Light Treads Armored Treads > --- UTILITY ---------- Small Storage Unit Signal Interpreter > --- WEAPON ----------- Medium Laser Assault Rifle > --- INVENTORY -------- Light Ion Engine Light Treads Sensor Array Light Armor Plating V3-11A's Pendant Medium Laser Grenade Launcher Datajack [Rating: 10] Favorites ----------- Power Light Ion Engine Engine Light Ion Engine Propulsion Light Treads Treads Light Treads Utility Small Storage Unit Device V3-11A's Pendant Storage Small Storage Unit Processor Signal Interpreter Protection Light Armor Plating Weapon Medium Laser Energy Gun Medium Laser Ballistic Gun Assault Rifle Launcher Grenade Launcher Special Weapon Mining Laser Build | -11 -10 -10 -7 ------- Run | Yrd Mat Sub Rec Slots Evolved . | . . . . Power . | . . . . Propulsion . | . . . . Utility . | . . . . Weapon . | . . . . Parts Attached 15 | 7 5 1 2 Power 1 | 1 . . . Engine 1 | 1 . . . Core . | . . . . Reactor . | . . . . Propulsion 4 | 2 1 . 1 Treads 4 | 2 1 . 1 Leg . | . . . . Wheel . | . . . . Hover . | . . . . Flight . | . . . . Utility 5 | 2 1 1 1 Device 2 | 1 . 1 . Storage 1 | 1 . . . Processor 1 | . . . 1 Hackware . | . . . . Protection 1 | . 1 . . Artifact . | . . . . Weapon 5 | 2 3 . . Energy Gun 2 | 1 1 . . Energy Cannon . | . . . . Ballistic Gun 1 | 1 . . . Ballistic Cannon . | . . . . Launcher 1 | . 1 . . Special Weapon 1 | . 1 . . Impact Weapon . | . . . . Slashing Weapon . | . . . . Piercing Weapon . | . . . . Special Melee Weapon . | . . . . Unidentified Prototypes 1 | . . 1 . Parts Lost 4 | . . . 4 Power 1 | . . . 1 Propulsion 1 | . . . 1 Utility . | . . . . Weapon 2 | . . . 2 Highest Loss Streak 3 | . . . 3 To Critical Strikes . | . . . . Average Backups 7 | 2 7 8 7 Power . | . 1 1 1 Propulsion . | . . 1 1 Utility 2 | . 2 2 3 Weapon 2 | 1 2 2 1 Tool/Special . | . . . . Unused Backups 5 | . 2 . 3 Power 1 | . . . 1 Propulsion . | . . . . Utility 3 | . 2 . 1 Weapon . | . . . . Tool/Special 1 | . . . 1 Average Slot Usage (%) 95 | . 93 100 91 Engine 12 | . 13 14 6 Treads 26 | . 22 28 27 Device 8 | . 5 13 4 Storage 14 | . 14 14 14 Processor 2 | . . . 9 Protection 2 | . 8 . . Energy Gun 13 | . 13 14 14 Ballistic Gun 13 | . 13 14 13 Peak Build Rating 10 | 7 8 9 10 Average Rating 8 | 5 6 8 8 On Entrance 5 | . 7 7 9 Avg Prop Armor Cover (%) . | . . . . Naked Turns . | . . . . Heaviest Build 15 | 13 15 15 13 Greatest Support 40 | 40 40 40 40 Greatest Overweight (x) . | . . . . Average Overweight (x) . | . . . . Largest Inventory Capacity 8 | 8 8 8 8 Average Capacity 7 | 7 8 8 8 Most Carried 8 | 4 8 8 8 Average Carried 7 | 2 7 7 7 Final Capacity 8 | 8 8 8 8 Final Carried 8 | 3 8 8 6 Class Distribution -------------------- 100% | Mutant Dominant Class ---------------- Mutant | -10/Materials Mutant | -10/Subcaves Mutant | -7/Recycling Resources | -11 -10 -10 -7 ----------- Run | Yrd Mat Sub Rec Matter Collected 576 | 287 206 56 27 Remotely . | . . . . Salvage Created 667 | 134 533 . . Parts 50 | 13 37 . . Haulers Intercepted 2 | . 2 . . Recyclers Shooed . | . . . . Parts Field Recycled . | . . . . Retrieved Matter . | . . . . Parts Self-Destructed 15 | . . 15 . Prevented . | . . . . Parts Restored . | . . . . Kills | -11 -10 -10 -7 ------- Run | Yrd Mat Sub Rec Combat Hostiles Destroyed 9 | . 9 . . Guns 6 | . 6 . . AOE 3 | . 3 . . Classes Destroyed 7 | 2 5 . . Worker 2 | . 2 . . Tunneler 4 | 4 . . . Hauler 2 | . 2 . . Recycler 2 | 1 1 . . Watcher 3 | . 3 . . Swarmer 3 | . 3 . . Grunt 6 | . 6 . . Best Kill Streak 4 | 4 4 . . Combat Bots Only 3 | . 3 . . Max Kills in Single Turn 4 | 1 4 . . Gunslinging . | . . . . Exploded 3 | . 3 . . Melee . | . . . . Uniques/NPCs Destroyed . | . . . . Combat | -11 -10 -10 -7 -------- Run | Yrd Mat Sub Rec Hostile Shots Fired 149 | . 33 5 111 Missed 55 | . 5 3 47 Hits 94 | . 28 2 64 Projectile 94 | . 28 2 64 AOE 1 | . . 1 . Damage Taken 975 | . 371 131 473 Core 259 | . 66 72 121 Absorbed by Shields . | . . . . Core Remaining (%) 100 | 100 . . . Volleys Fired 63 | 10 36 2 15 Largest 2 | 2 2 2 2 Hottest 100 | 70 100 70 100 Shots Fired 118 | 20 71 4 23 Gun 110 | 20 69 4 17 Cannon . | . . . . Launcher 7 | . 1 . 6 Special 1 | . 1 . . Kinetic 53 | 10 35 2 6 Thermal 58 | 10 35 2 11 Explosive 7 | . 1 . 6 Electromagnetic . | . . . . Robot Hit Streak 9 | 5 9 . 8 Robot Miss Streak 2 | 2 2 . 2 Penetration Max . | . . . . Secondary Targets . | . . . . Shots Hit Robots 80 | 13 50 . 17 Core Hits 42 | 6 27 . 9 Critical Kills . | . . . . Critical Parts Destroyed . | . . . . Critical Strikes 2 | 1 1 . . Burn 2 | 1 1 . . Melee Attacks . | . . . . Impact . | . . . . Slashing . | . . . . Piercing . | . . . . Sneak Attacks . | . . . . Combat Hostiles . | . . . . Follow-up Attacks . | . . . . Damage Inflicted 1268 | 169 809 . 290 Guns 955 | 169 628 . 158 Cannons . | . . . . Explosions 297 | . 166 . 131 Melee . | . . . . Ramming 16 | . 15 . 1 Kinetic 476 | 94 313 . 69 Thermal 479 | 75 315 . 89 Explosive 297 | . 166 . 131 Electromagnetic . | . . . . Impact . | . . . . Slashing . | . . . . Piercing . | . . . . Highest Corruption . | . . . . Average Corruption . | . . . . Corruption Purged . | . . . . Corruption Blocked . | . . . . Overload Shots . | . . . . Overflow Damage 30 | . 30 . . Projectiles . | . . . . Explosions 30 | . 30 . . Melee . | . . . . Knockbacks . | . . . . Impact . | . . . . Kinetic . | . . . . Secondary . | . . . . Self-Inflicted Damage 11 | . 11 . . Shots 1 | . 1 . . Rammed 3 | . 2 . 1 Targets Rammed 4 | . 3 . 1 Kicked . | . . . . Crushed 1 | . 1 . . Highest Temperature 123 | 27 123 . 60 Average Temperature 26 | 10 31 . 19 Received Heat Transfer 333 | . 195 . 138 Siege Activations . | . . . . Martial Activations . | . . . . Shielding Activations . | . . . . Robots Disrupted . | . . . . Combat Hostiles . | . . . . Robots Corrupted . | . . . . Combat Hostiles . | . . . . Parts Fried . | . . . . Impact Corruptions . | . . . . Robots Melted . | . . . . Combat Hostiles . | . . . . Parts Melted 2 | . 2 . . Heat Transferred 1554 | 296 999 . 259 Parts Sabotaged . | . . . . Parts Stolen . | . . . . Parts Stripped . | . . . . Power Chain Reactions . | . . . . Alert | -11 -10 -10 -7 ------- Run | Yrd Mat Sub Rec Maximum Alert Level . | . . . . Low Security (%) 100 | 100 100 . 100 Level 1 . | . . . . Level 2 . | . . . . Level 3 . | . . . . Level 4 . | . . . . Level 5 . | . . . . High Security . | . . . . Max Security . | . . . . Peak Influence 132 | 5 123 . 132 Initial 132 | . . . 132 Average 32 | 1 38 . 28 Influence Increases 810 | 25 322 292 171 Destroy 0b10 Robot/C 400 | . 180 160 60 Destroy 0b10 Robot/NC 75 | 25 40 . 10 Destroy Leader 70 | . 60 10 . Allied During Kill 92 | . . 77 15 Successful Hack 40 | . 16 . 24 Disable Machine 45 | . 15 . 30 Destroy Structure 43 | . 11 . 32 Lose Combat Pursuer 45 | . . 45 . Influence Decreases 809 | 25 322 15 447 Entered New Map 145 | . . . 145 Time Decay 586 | 25 322 15 224 Lost Part 4 | . . . 4 Lost Ally 74 | . . . 74 Squads Dispatched 2 | . 2 . . Investigation 1 | . 1 . . Extermination . | . . . . Reinforcement 1 | . 1 . . Assault . | . . . . Garrison . | . . . . Intercept . | . . . . Searches Triggered . | . . . . Construction Impeded . | . . . . Haulers Reinforced . | . . . . Active Scanning Responses . | . . . . Cargo Convoy Interrupts . | . . . . Stealth | -11 -10 -10 -7 --------- Run | Yrd Mat Sub Rec Distress Signals 1 | . 1 . . Communications Jammed . | . . . . Distress Signals . | . . . . Times Spotted 27 | . 14 10 3 Peak Tracking Total 6 | . 6 6 1 Tactical Retreats 1 | . . 1 . Traps | -11 -10 -10 -7 ------- Run | Yrd Mat Sub Rec Traps Triggered 5 | . 4 1 . Indirectly . | . . . . Trap Hack Attempts . | . . . . Triggered . | . . . . Disarmed . | . . . . Reprogrammed . | . . . . Reused . | . . . . Traps Extracted . | . . . . Installed . | . . . . Triggered . | . . . . Machines | -11 -10 -10 -7 ---------- Run | Yrd Mat Sub Rec Machines Disabled 6 | . 1 3 2 Max in Single Turn 1 | . 1 . . Machines Repaired . | . . . . Machines Dismantled . | . . . . Machines Sabotaged . | . . . . Overloaded Fab Kills . | . . . . Hacking | -11 -10 -10 -7 --------- Run | Yrd Mat Sub Rec Machines Accessed 14 | . 6 3 5 Terminals 11 | . 6 . 5 Fabricators . | . . . . Repair Stations . | . . . . Recycling Units . | . . . . Scanalyzers . | . . . . Garrison Access . | . . . . Total Hacks 30 | . 17 7 6 Successful 19 | . 10 7 2 Failed 11 | . 7 . 4 Catastrophic 3 | . . . 3 Database Lockouts . | . . . . Manual 28 | . 21 1 6 Terminals 23 | . 17 . 6 Fabricators . | . . . . Repair Stations . | . . . . Recycling Units . | . . . . Scanalyzers . | . . . . Garrison Access . | . . . . Terminal Hacks 11 | . 2 7 2 Record 7 | . . 6 1 Robot Analysis 1 | . 1 . . Open Door 1 | . . 1 . Alert Level 1 | . . . 1 Hauler Manifests 1 | . 1 . . Fabricator Hacks . | . . . . Repair Station Hacks . | . . . . Recycling Unit Hacks . | . . . . Scanalyzer . | . . . . Garrison Access Hacks . | . . . . Unauthorized Hacks 8 | . 8 . . Terminals 8 | . 8 . . Botnet 3 | . 3 . . Skim 5 | . 5 . . Fabricators . | . . . . Repair Stations . | . . . . Recycling Units . | . . . . Scanalyzers . | . . . . Garrison Access . | . . . . Data Cores Recovered . | . . . . Used . | . . . . Hacking Detections 11 | . 6 . 5 Full Trace Events . | . . . . Feedback Events . | . . . . Feedback Blocked . | . . . . Robot Schematics Acquired . | . . . . Robots Built . | . . . . Authchips . | . . . . Time . | . . . . Total Robot Build Rating . | . . . . Part Schematics Acquired . | . . . . Parts Built . | . . . . Authchips . | . . . . Time . | . . . . Total Part Build Rating . | . . . . Part Studies Acquired . | . . . . Parts Repaired . | . . . . Time . | . . . . Parts Recycled . | . . . . Recycled Matter . | . . . . Retrieved Matter . | . . . . Retrieved Components . | . . . . Parts Scanalyzed . | . . . . Part Schematics Acquired . | . . . . Parts Damaged . | . . . . Bothacking | -11 -10 -10 -7 ------------ Run | Yrd Mat Sub Rec Used RIF Installer . | . . . . Robots Hacked . | . . . . Non-combat . | . . . . Combat . | . . . . Robot Hacks Applied . | . . . . Relay Couplers Released . | . . . . Fabnet Peak Effective % . | . . . . Robots Rewired . | . . . . Allies Hacked . | . . . . Hacks Repelled . | . . . . Allies | -11 -10 -10 -7 -------- Run | Yrd Mat Sub Rec Total Allies 9 | . . 9 . Largest Group 8 | . . 8 8 Highest-Rated Group 152 | . . 152 152 Highest-Rated Ally 19 | . . 19 19 Total Orders . | . . . . Ally Attacks 45 | . . 15 30 Total Damage 1383 | . . 547 836 Kills 14 | . . 8 6 Allies Corrupted . | . . . . Allies Melted . | . . . . Intel | -11 -10 -10 -7 ------- Run | Yrd Mat Sub Rec Active Infowar (turns) 520 | 15 505 . . Seismic 520 | 15 505 . . Robot Analysis Total 1 | . 1 . . Derelict Logs Recovered 1 | . . 1 . Drone Launches . | . . . . Drone Recoveries . | . . . . Exploration | -11 -10 -10 -7 ------------- Run | Yrd Mat Sub Rec Turns Passed 3992 | 184 1257 1710 841 Spaces Moved 2250 | 92 633 1039 486 Core 8 | 8 . . . Treads 2242 | 84 633 1039 486 Legs . | . . . . Wheels . | . . . . Hover . | . . . . Flight . | . . . . Fastest Speed 50 | 50 160 160 160 Average Speed 160 | 150 160 160 163 Slowest Speed 165 | 160 160 160 165 Overloaded Moves . | . . . . Propulsion Burnouts . | . . . . Robots Hopped . | . . . . Potential Cave-ins . | . . . . Cave-ins Triggered . | . . . . Exploration Rate (%) 64 | 4 87 78 87 Regions Visited 3 Branch Regions 2 Pre-discovered Areas . | . . . . Known Exits Taken 2 | . 1 1 . Unknown Exits Taken 1 | 1 . . . Scrap Searched 1 | . . 1 . Spaces Dug . | . . . . Terrain Destroyed 16 | . 10 . 6 Melee . | . . . . Projectile . | . . . . AOE 16 | . 10 . 6 Terrain Rammed . | . . . . Walls Destroyed . | . . . . Machines Disabled . | . . . . Actions | -11 -10 -10 -7 --------- Run | Yrd Mat Sub Rec Total 2514 | 118 801 1083 512 Wait 145 | . 103 40 2 Move 2247 | 91 632 1038 486 Hop . | . . . . Pick Up 22 | 10 11 1 . Fast Attach 3 | . 3 . . Attach 12 | 7 3 . 2 Detach . | . . . . Swap 11 | . 6 1 4 Drop 6 | . 4 1 1 Fire 63 | 10 36 2 15 Melee . | . . . . Ram . | . . . . Kick . | . . . . Crush 4 | . 3 . 1 Escape Stasis . | . . . . Rewire 1 | . . . 1 Trap . | . . . . Miscellaneous . | . . . . Route ------- -11/Scrapyard -10/Materials (discovered 5 exits: *Mat x3 / [*Min] / *Sub) -10/Subcaves (discovered 3 exits: *Mat x2 / *Rec) -7/Recycling (discovered 1 exit: *Fac) History --------- Turn | Location | Event 14 | -11/Scrapyard | Discovered new exit (range 16) 185 | -11/Scrapyard | Entered Materials 314 | -10/Materials | Build established: Mutant 455 | -10/Materials | Discovered new exit (range 16) 769 | -10/Materials | Discovered new exit (range 7) 881 | -10/Materials | Discovered new exit (range 7) 1188 | -10/Materials | Identified exit to Materials 1232 | -10/Materials | Identified exit to Subcaves 1289 | -10/Materials | Loaded intel: 8 terminal locations 1442 | -10/Materials | Entered Subcaves 1442 | -10/Subcaves | Learned Materials terminal intel 1443 | -10/Subcaves | Approached by a straggling Scientist 1443 | -10/Subcaves | Identified exit to Materials 1443 | -10/Subcaves | Identified exit to Recycling 1497 | -10/Subcaves | Visited triangular shrine 1509 | -10/Subcaves | Found Prototype Device 1510 | -10/Subcaves | Identified V3-11A's Pendant 1515 | -10/Subcaves | Befriended Subdweller 1580 | -10/Subcaves | Befriended Subdweller 1998 | -10/Subcaves | Visited Clippyterm 2003 | -10/Subcaves | Learned Research security intel 2003 | -10/Subcaves | Learned Factory emergency access door positions 2036 | -10/Subcaves | Discovered exit to Materials (range 10) 2220 | -10/Subcaves | Befriended Subdweller 2250 | -10/Subcaves | Befriended Subdweller 2255 | -10/Subcaves | Befriended Subdweller 2512 | -10/Subcaves | Core integrity fell below 50% 2640 | -10/Subcaves | Befriended Subdweller 2640 | -10/Subcaves | Befriended Subdweller 2675 | -10/Subcaves | Befriended Subdweller 2675 | -10/Subcaves | Befriended Subdweller 3152 | -10/Subcaves | Entered Recycling 3152 | -7/Recycling | Accompanied by 8 allies 3431 | -7/Recycling | Discovered new exit (range 8) 3444 | -7/Recycling | Identified exit to Factory 3528 | -7/Recycling | Core integrity fell below 20% 3567 | -7/Recycling | Lost 4 allies 3993 | -7/Recycling | Destroyed by Y-54 Guardian with Gatling Laser Last Messages --------------- 03554_ R-06 Scavenger collects Sub. Power Source. 03555_ U-05 Engineer lays Concrete. 03557_ U-05 Engineer builds a Wall. 03559_ R-06 Scavenger collects Sub. Power Source. 03561_ U-05 Engineer lays Concrete. 03563_ R-06 Scavenger collects Sub. Monowheel. 03564_ U-05 Engineer builds a Wall. 03568_ U-05 Engineer lays Concrete. 03675_ Slammed into R-06 Scavenger. 03683_ Attempting to rewire R-06 Scavenger. 03683_ R-06 Scavenger is unpowered. 03885_ Connecting with Terminal... 03964_ Recycling Unit disabled. 03964_ Y-54 Guardian springs to life. 03964_ 5P-VP2(R) destroyed. 03979_ Arm. Treads destroyed. 03982_ Assault Rifle destroyed. 03987_ Med. Laser destroyed. Map ----- +----------------------------------------------------+ | ????# #??????????? | | ????# #??????????? | | ????# """"" """ """ ############ | | ??### """"" """"""""" | | ??# """"" """"" " ##### | | ??# #???# | | ??# #???# | | ??# ################# #???# # | | ??# #???????????????# #???# # | | ??# #?????????####### ##+#####+## # | | ??# #????????? ## #### # | | ??# ????????? ## #??# # # | | ??# ????????? ## #??# """"""" # # | | ??# ????????? ## #??# """"""" + # | | ??### ##???????? ## #??# """"""" # # | | ????? #????????? ## #??# """"""" # # | | ????? #?????##?? "# #??# """"""" # # | | ????? ####### #? # #??# # # | | ????? ?# Y "# #??########### # | | ????? ?# # #????????????# # | | ????? ?# # ############## + | | ???????# # ?# + # # | | ???????# # #?# ##### """ # ? | | ???????# ?# #?# #???# "T" + ? | | ???????# ?# #?# #???# # ? | | ???????# ??#@ #?# #???# #???? | | ???????# ??# #?# ##### """"" #???? | | ???????######???# #?# / """"" #???? | | ????????????????# #?# ##### """"" #???? | | ????????????????# #?# #???# #???? | | ????????????????# #?# #???##########???? | | ????????????????# #?# #????????????????? | | ????????????????# #?# #????????????????? | | ????????????????# #?# #????????????????? | | ?????????#####??# ###+#######?????###### | | ?????????? ??# # #?????# | | ??????????""" ?# r# """#?????# | | ??????????"""" ?# # Y"#?????# | | ?????????""""" # # """ """#?????# """ | | ??????? """"" # # """ #?????# """ | | ??????? """ + + """ ####### """ | | ??????# # # + """ | | ??????# # # # """ | | ??????#########?# ########### | | ????????????????# | | ???????###########+#########+############# | | ???????# #?###?????### | | ???????# #?# ? # | | ???????# #?# """"" # | | ???????# ### """"" # | +----------------------------------------------------+ Best States ------------- Heat Dissipation 25 Energy Generation 10 Energy Capacity 125 Matter Stores 300 Matter Capacity 300 Sight Range 16 Terrain Scan Density 10 Armor Coverage 150 Evasion (%) 50 Recoil Reduction 2 Item Schematics ----------------- None Robot Schematics ------------------ None Fabricated ------------ Nothing Repaired ---------- Nothing Studied --------- None Alien Tech Used ----------------- None Achievements -------------- SUBSUB Challenges ------------ None Game ------ Seed PropulsionAntigravMultitool Manual? 0 Play Time 00:28:08 Cumulative 27.7 hours Start 2026.08.18 @ 02:37:07 End 2026.08.18 @ 03:09:32 Sessions 1 Manual Loads 0 Difficulty Rogue Special Mode None Game No. 32 Rogue 29 Adventurer 3 Explorer 0 Win Type - Total 1 Types 1/0/0/0/0/0/0/0/0/0 Lore% 29 Gallery% 23 Achievement% 26 Wizard Run 0 Options --------- Layout 1 ASCII 0 Keyboard 0 Movement Mouse Keybinds 0 Fullscreen 1 Font 32/SmallcapsGlow Map View 50x35 Zoom Use 0% Tactical HUD 1 Map Filters NONE Filters NONE Steam 1 RUN: d821672d-f8d1-46d0-8f66-fc79a606f245